[Event "*** Titled Tuesday Blitz"]
[Site "Chess.com"]
[Date "2020.04.14"]
[Round "8"]
[White "avocadosheena"]
[Black "tamarozi99"]
[Result "1-0"]
[WhiteElo "2153"]
[BlackElo "1949"]
[TimeControl "180+1"]
[EndTime "11:30:29 PDT"]
[Termination "avocadosheena won by resignation"]

1. d4 {[%clk 0:03:00.9]} 1... Nf6 {[%clk 0:02:59.1]} 2. c4 {[%clk 0:03:00.6]}
2... g6 {[%clk 0:02:58.1]} 3. Nc3 {[%clk 0:02:59.9]} 3... Bg7 {[%clk 0:02:55]}
4. e4 {[%clk 0:02:59.6]} 4... d6 {[%clk 0:02:53.4]} 5. Nf3 {[%clk 0:02:59.5]}
5... O-O {[%clk 0:02:50.5]} 6. Be2 {[%clk 0:02:59.6]} 6... e5 {[%clk 0:02:49.9]}
7. O-O {[%clk 0:02:58.6]} 7... Nc6 {[%clk 0:02:49.8]} 8. d5 {[%clk 0:02:58.5]}
8... Ne7 {[%clk 0:02:50.4]} 9. Ne1 {[%clk 0:02:58.6]} 9... Nd7 {[%clk
0:02:46.9]} 10. f3 {[%clk 0:02:58.8]} 10... f5 {[%clk 0:02:45.8]} 11. g4 {[%clk
0:02:58.5]} 11... fxg4 {[%clk 0:02:17]} 12. fxg4 {[%clk 0:02:57.5]} 12... Rxf1+
{[%clk 0:02:16.6]} 13. Kxf1 {[%clk 0:02:57.8]} 13... Qf8+ {[%clk 0:02:12.9]} 14.
Kg2 {[%clk 0:02:56.9]} 14... a5 {[%clk 0:01:49.8]} 15. Nd3 {[%clk 0:02:47.9]}
15... h6 {[%clk 0:01:43.5]} 16. h4 {[%clk 0:02:23.9]} 16... Nf6 {[%clk
0:01:27.4]} 17. Nf2 {[%clk 0:02:14.4]} 17... c6 {[%clk 0:01:17.4]} 18. Be3
{[%clk 0:01:41]} 18... cxd5 {[%clk 0:01:15.7]} 19. cxd5 {[%clk 0:01:40.7]} 19...
Bd7 {[%clk 0:00:54.1]} 20. Rc1 {[%clk 0:01:35.5]} 20... Rc8 {[%clk 0:00:41.4]}
21. Nb5 {[%clk 0:01:27.4]} 21... Bxb5 {[%clk 0:00:39]} 22. Bxb5 {[%clk
0:01:27.1]} 22... Rxc1 {[%clk 0:00:37.5]} 23. Qxc1 {[%clk 0:01:27.7]} 23... Kh7
{[%clk 0:00:34.3]} 24. Qc7 {[%clk 0:01:20.8]} 24... h5 {[%clk 0:00:29.1]} 25. g5
{[%clk 0:00:59.9]} 25... Ng4 {[%clk 0:00:27.1]} 26. Nxg4 {[%clk 0:00:59.7]}
26... hxg4 {[%clk 0:00:27]} 27. Be2 {[%clk 0:01:00]} 27... Nf5 {[%clk
0:00:17.9]} 28. exf5 {[%clk 0:00:58.3]} 28... gxf5 {[%clk 0:00:18.8]} 29. Qc2
{[%clk 0:00:29.3]} 29... Kh8 {[%clk 0:00:13.9]} 30. Bb6 {[%clk 0:00:16.8]} 30...
e4 {[%clk 0:00:12.5]} 31. Qc7 {[%clk 0:00:15.4]} 31... f4 {[%clk 0:00:10.4]} 32.
Bxg4 {[%clk 0:00:14]} 32... f3+ {[%clk 0:00:10.4]} 33. Kf2 {[%clk 0:00:14.3]}
33... Bxb2 {[%clk 0:00:06.1]} 34. Qd8 {[%clk 0:00:13.9]} 34... Qxd8 {[%clk
0:00:05.1]} 35. Bxd8 {[%clk 0:00:14.8]} 35... Bd4+ {[%clk 0:00:05.4]} 36. Kg3
{[%clk 0:00:13.1]} 36... b6 {[%clk 0:00:05.6]} 37. Bf5 {[%clk 0:00:12.3]} 37...
f2 {[%clk 0:00:05.7]} 38. Kg2 {[%clk 0:00:12.1]} 38... e3 {[%clk 0:00:05.3]} 39.
Bd3 {[%clk 0:00:12.4]} 39... Kg8 {[%clk 0:00:04.4]} 40. Bf6 {[%clk 0:00:11.4]}
40... Bxf6 {[%clk 0:00:03.5]} 41. gxf6 {[%clk 0:00:11.6]} 41... Kf7 {[%clk
0:00:04.4]} 42. Kf3 {[%clk 0:00:11.5]} 42... Kxf6 {[%clk 0:00:05.3]} 43. Kxe3
{[%clk 0:00:11.7]} 43... Ke5 {[%clk 0:00:04.1]} 44. Kxf2 {[%clk 0:00:10.9]}
44... Kxd5 {[%clk 0:00:05]} 45. h5 {[%clk 0:00:10.5]} 45... Ke6 {[%clk
0:00:05.5]} 46. h6 {[%clk 0:00:09.7]} 46... Kf6 {[%clk 0:00:06.4]} 47. Ke3
{[%clk 0:00:07.6]} 47... b5 {[%clk 0:00:04.4]} 48. Kd4 {[%clk 0:00:07]} 48... d5
{[%clk 0:00:01.8]} 49. Kxd5 {[%clk 0:00:06.9]} 49... b4 {[%clk 0:00:02.7]} 50.
Kc4 {[%clk 0:00:06.2]} 50... Kf7 {[%clk 0:00:01.9]} 51. Kb5 {[%clk 0:00:06.1]}
51... a4 {[%clk 0:00:02.6]} 52. Kxa4 {[%clk 0:00:05.7]} 1-0

[Event "*** Titled Tuesday Blitz"]
[Site "Chess.com"]
[Date "2020.04.14"]
[Round "8"]
[White "Etoilegeniale"]
[Black "GracefulYear"]
[Result "1-0"]
[WhiteElo "2529"]
[BlackElo "2672"]
[TimeControl "180+1"]
[EndTime "11:30:30 PDT"]
[Termination "Etoilegeniale won by checkmate"]

1. e4 {[%clk 0:03:00.9]} 1... c6 {[%clk 0:02:59.6]} 2. d4 {[%clk 0:02:53.9]}
2... d5 {[%clk 0:03:00.5]} 3. exd5 {[%clk 0:02:54]} 3... cxd5 {[%clk 0:02:59.1]}
4. Bd3 {[%clk 0:02:54.5]} 4... Nf6 {[%clk 0:02:58.1]} 5. c3 {[%clk 0:02:54.6]}
5... Nc6 {[%clk 0:02:57.6]} 6. Nf3 {[%clk 0:02:54]} 6... Bg4 {[%clk 0:02:56.9]}
7. Bf4 {[%clk 0:02:53.2]} 7... e6 {[%clk 0:02:57]} 8. Nbd2 {[%clk 0:02:52.8]}
8... Bd6 {[%clk 0:02:57.1]} 9. Bxd6 {[%clk 0:02:52.3]} 9... Qxd6 {[%clk
0:02:58]} 10. O-O {[%clk 0:02:52.2]} 10... O-O {[%clk 0:02:57.2]} 11. Re1 {[%clk
0:02:52]} 11... a6 {[%clk 0:02:56.3]} 12. h3 {[%clk 0:02:52.1]} 12... Bh5 {[%clk
0:02:55.4]} 13. Qb3 {[%clk 0:02:49.1]} 13... b5 {[%clk 0:02:54.1]} 14. Ne5
{[%clk 0:02:48.8]} 14... Na5 {[%clk 0:02:51.3]} 15. Qc2 {[%clk 0:02:48.5]} 15...
Bg6 {[%clk 0:02:50.1]} 16. Nxg6 {[%clk 0:02:25.5]} 16... hxg6 {[%clk 0:02:51]}
17. g3 {[%clk 0:02:22.6]} 17... Nc4 {[%clk 0:02:50]} 18. Nf3 {[%clk 0:02:22.3]}
18... Rac8 {[%clk 0:02:46.7]} 19. a3 {[%clk 0:02:20.3]} 19... Qc7 {[%clk
0:02:41.7]} 20. Kg2 {[%clk 0:02:18.3]} 20... a5 {[%clk 0:02:40]} 21. h4 {[%clk
0:02:11.8]} 21... Qd6 {[%clk 0:02:37.4]} 22. Ne5 {[%clk 0:02:02.2]} 22... b4
{[%clk 0:02:31.9]} 23. axb4 {[%clk 0:02:01.9]} 23... axb4 {[%clk 0:02:32.8]} 24.
Ra7 {[%clk 0:02:00.3]} 24... bxc3 {[%clk 0:02:27]} 25. bxc3 {[%clk 0:01:59]}
25... Qb6 {[%clk 0:02:24.6]} 26. Rea1 {[%clk 0:01:52.7]} 26... Nd6 {[%clk
0:02:20.6]} 27. R1a6 {[%clk 0:01:28.7]} 27... Qb8 {[%clk 0:02:20.1]} 28. Qa4
{[%clk 0:00:56.4]} 28... Nde4 {[%clk 0:02:10.3]} 29. Bxe4 {[%clk 0:00:31.7]}
29... Nxe4 {[%clk 0:02:08.2]} 30. Nd7 {[%clk 0:00:21.9]} 30... Qb2 {[%clk
0:02:05.6]} 31. Qa2 {[%clk 0:00:21.6]} 31... Qxa2 {[%clk 0:01:57.9]} 32. Rxa2
{[%clk 0:00:21.5]} 32... Rfd8 {[%clk 0:01:58.1]} 33. Ne5 {[%clk 0:00:20.3]}
33... Rf8 {[%clk 0:01:51.3]} 34. Rd7 {[%clk 0:00:17.5]} 34... Rxc3 {[%clk
0:01:47.7]} 35. Raa7 {[%clk 0:00:17.2]} 35... Rc2 {[%clk 0:01:46.5]} 36. Rxf7
{[%clk 0:00:16.7]} 36... Rxf2+ {[%clk 0:01:42.4]} 37. Rxf2 {[%clk 0:00:16.6]}
37... Rxf2+ {[%clk 0:01:42.3]} 38. Kh3 {[%clk 0:00:16.8]} 38... Rf6 {[%clk
0:01:36.2]} 39. Ra8+ {[%clk 0:00:15.9]} 39... Kh7 {[%clk 0:01:35.8]} 40. Nd7
{[%clk 0:00:13.6]} 40... Rf1 {[%clk 0:01:24.5]} 41. Nf8+ {[%clk 0:00:13.5]}
41... Kh6 {[%clk 0:01:23.2]} 42. Nxe6 {[%clk 0:00:13.4]} 42... Kh7 {[%clk
0:01:14.8]} 43. Ng5+ {[%clk 0:00:12.8]} 43... Nxg5+ {[%clk 0:01:14]} 44. hxg5
{[%clk 0:00:11.2]} 44... Rd1 {[%clk 0:01:10]} 45. Ra4 {[%clk 0:00:10.6]} 45...
Kg8 {[%clk 0:01:09.3]} 46. Kg4 {[%clk 0:00:10.6]} 46... Kf7 {[%clk 0:01:09.7]}
47. Kf4 {[%clk 0:00:10.7]} 47... Ke6 {[%clk 0:01:09.8]} 48. Ra6+ {[%clk
0:00:09.6]} 48... Kf7 {[%clk 0:01:06.5]} 49. Ke5 {[%clk 0:00:10.1]} 49... Rg1
{[%clk 0:01:06.3]} 50. Ra7+ {[%clk 0:00:09.9]} 50... Kg8 {[%clk 0:01:05.1]} 51.
Kxd5 {[%clk 0:00:10.4]} 51... Rxg3 {[%clk 0:01:03.9]} 52. Ke6 {[%clk 0:00:10.6]}
52... Rxg5 {[%clk 0:01:03.9]} 53. d5 {[%clk 0:00:10.8]} 53... Rg1 {[%clk
0:01:01.3]} 54. Ra8+ {[%clk 0:00:10.9]} 54... Kh7 {[%clk 0:01:00.7]} 55. d6
{[%clk 0:00:11.4]} 55... Re1+ {[%clk 0:01:00.9]} 56. Kd5 {[%clk 0:00:11.3]}
56... Rd1+ {[%clk 0:01:00.4]} 57. Ke6 {[%clk 0:00:11.3]} 57... g5 {[%clk
0:01:00.4]} 58. d7 {[%clk 0:00:10.9]} 58... Re1+ {[%clk 0:01:00.6]} 59. Kf5
{[%clk 0:00:10.4]} 59... Rf1+ {[%clk 0:01:00.7]} 60. Kxg5 {[%clk 0:00:10]} 60...
Rg1+ {[%clk 0:00:57.8]} 61. Kf4 {[%clk 0:00:09.8]} 61... Rf1+ {[%clk 0:00:57.7]}
62. Kg3 {[%clk 0:00:09.8]} 62... Rg1+ {[%clk 0:00:56]} 63. Kf2 {[%clk
0:00:08.8]} 63... Rd1 {[%clk 0:00:56.9]} 64. d8=Q {[%clk 0:00:08.6]} 64... Rxd8
{[%clk 0:00:57.8]} 65. Rxd8 {[%clk 0:00:08.2]} 65... g5 {[%clk 0:00:58.7]} 66.
Kf3 {[%clk 0:00:08.5]} 66... Kg6 {[%clk 0:00:59.6]} 67. Kg4 {[%clk 0:00:08.9]}
67... Kf6 {[%clk 0:01:00.1]} 68. Rd5 {[%clk 0:00:09.3]} 68... Kg6 {[%clk
0:00:59.8]} 69. Rxg5+ {[%clk 0:00:09.7]} 69... Kh6 {[%clk 0:01:00.7]} 70. Ra5
{[%clk 0:00:10]} 70... Kg6 {[%clk 0:01:01.6]} 71. Ra6+ {[%clk 0:00:10.1]} 71...
Kf7 {[%clk 0:01:02.5]} 72. Kf5 {[%clk 0:00:10.1]} 72... Ke7 {[%clk 0:01:03.3]}
73. Rh6 {[%clk 0:00:09.9]} 73... Kd7 {[%clk 0:01:04.2]} 74. Ke5 {[%clk
0:00:09.9]} 74... Ke7 {[%clk 0:01:04.6]} 75. Rh7+ {[%clk 0:00:09.3]} 75... Kf8
{[%clk 0:01:05.5]} 76. Kf6 {[%clk 0:00:07.7]} 76... Ke8 {[%clk 0:01:06.4]} 77.
Ra7 {[%clk 0:00:07.5]} 77... Kd8 {[%clk 0:01:06.5]} 78. Ke6 {[%clk 0:00:08]}
78... Ke8 {[%clk 0:01:07]} 79. Ra8# {[%clk 0:00:07.6]} 1-0

[Event "*** Titled Tuesday Blitz"]
[Site "Chess.com"]
[Date "2020.04.14"]
[Round "8"]
[White "Disturbed01"]
[Black "GMMatamoros"]
[Result "0-1"]
[WhiteElo "2642"]
[BlackElo "2522"]
[TimeControl "180+1"]
[EndTime "11:30:30 PDT"]
[Termination "GMMatamoros won by checkmate"]

1. d4 {[%clk 0:03:00.9]} 1... Nf6 {[%clk 0:02:58.5]} 2. c4 {[%clk 0:03:01]} 2...
c5 {[%clk 0:02:58.3]} 3. d5 {[%clk 0:03:00.5]} 3... g6 {[%clk 0:02:58.5]} 4. Nc3
{[%clk 0:03:00.1]} 4... Bg7 {[%clk 0:02:59]} 5. e4 {[%clk 0:03:00.4]} 5... d6
{[%clk 0:02:57.2]} 6. h3 {[%clk 0:03:00.6]} 6... O-O {[%clk 0:02:57]} 7. Nf3
{[%clk 0:03:01.1]} 7... e6 {[%clk 0:02:57.3]} 8. Bd3 {[%clk 0:03:01.5]} 8...
exd5 {[%clk 0:02:57.5]} 9. exd5 {[%clk 0:03:02.4]} 9... Re8+ {[%clk 0:02:57.6]}
10. Be3 {[%clk 0:03:02.8]} 10... Nbd7 {[%clk 0:02:58.1]} 11. O-O {[%clk
0:03:02.1]} 11... a6 {[%clk 0:02:58.6]} 12. a4 {[%clk 0:03:01.2]} 12... Ne5
{[%clk 0:02:58.5]} 13. Nxe5 {[%clk 0:02:57.3]} 13... Rxe5 {[%clk 0:02:59.4]} 14.
Bf4 {[%clk 0:02:57.5]} 14... Re8 {[%clk 0:02:53.3]} 15. Qd2 {[%clk 0:02:55.6]}
15... Nh5 {[%clk 0:02:45.7]} 16. Bg5 {[%clk 0:02:53.1]} 16... Bf6 {[%clk
0:02:41.1]} 17. Bh6 {[%clk 0:02:46]} 17... Bg7 {[%clk 0:02:40.8]} 18. Bxg7
{[%clk 0:02:39.9]} 18... Kxg7 {[%clk 0:02:35.9]} 19. Rae1 {[%clk 0:02:38.5]}
19... Bd7 {[%clk 0:02:14.7]} 20. g4 {[%clk 0:02:34.1]} 20... Qh4 {[%clk
0:02:03]} 21. gxh5 {[%clk 0:02:30]} 21... Bxh3 {[%clk 0:02:01.9]} 22. h6+ {[%clk
0:02:16.2]} 22... Kg8 {[%clk 0:02:00.1]} 23. Ne4 {[%clk 0:02:10.1]} 23... Bxf1
{[%clk 0:01:51.2]} 24. Rxf1 {[%clk 0:01:52.4]} 24... Rxe4 {[%clk 0:01:45]} 25.
Bxe4 {[%clk 0:01:46.1]} 25... Qxe4 {[%clk 0:01:44.6]} 26. Re1 {[%clk 0:01:32.4]}
26... Qg4+ {[%clk 0:01:36.1]} 27. Kh2 {[%clk 0:01:30.5]} 27... g5 {[%clk
0:00:56.3]} 28. Re3 {[%clk 0:01:01.3]} 28... Qf4+ {[%clk 0:00:53.2]} 29. Kg1
{[%clk 0:00:56.9]} 29... f6 {[%clk 0:00:42.1]} 30. Qe2 {[%clk 0:00:51.9]} 30...
Rf8 {[%clk 0:00:30.2]} 31. Re7 {[%clk 0:00:45.5]} 31... Qf5 {[%clk 0:00:20]} 32.
Rxb7 {[%clk 0:00:37.8]} 32... Qb1+ {[%clk 0:00:09.4]} 33. Kh2 {[%clk 0:00:35.6]}
33... Qf5 {[%clk 0:00:09.7]} 34. Kg1 {[%clk 0:00:16.2]} 34... Qe5 {[%clk
0:00:08.5]} 35. Qg4 {[%clk 0:00:07.7]} 35... Qe1+ {[%clk 0:00:07.1]} 36. Kg2
{[%clk 0:00:08]} 36... Qe5 {[%clk 0:00:06.9]} 37. Qd7 {[%clk 0:00:07.5]} 37...
Qe4+ {[%clk 0:00:06.1]} 38. Kh2 {[%clk 0:00:07.2]} 38... Qh4+ {[%clk 0:00:05.6]}
39. Kg1 {[%clk 0:00:07.4]} 39... Qxh6 {[%clk 0:00:03.3]} 40. Qe6+ {[%clk
0:00:07.7]} 40... Kh8 {[%clk 0:00:02.9]} 41. Re7 {[%clk 0:00:07.2]} 41... Rg8
{[%clk 0:00:02.6]} 42. Rf7 {[%clk 0:00:05.9]} 42... Qg6 {[%clk 0:00:02.6]} 43.
Rxf6 {[%clk 0:00:05.9]} 43... Qb1+ {[%clk 0:00:02.6]} 44. Kg2 {[%clk 0:00:06.4]}
44... Qxb2 {[%clk 0:00:02.8]} 45. Rf7 {[%clk 0:00:05.8]} 45... Qe5 {[%clk
0:00:01.7]} 46. Qd7 {[%clk 0:00:04.2]} 46... Qe4+ {[%clk 0:00:01.5]} 47. Kh2
{[%clk 0:00:04.5]} 47... g4 {[%clk 0:00:01.6]} 48. Re7 {[%clk 0:00:01.7]} 48...
Qf4+ {[%clk 0:00:01.7]} 49. Kg2 {[%clk 0:00:02.5]} 49... g3 {[%clk 0:00:01.9]}
50. Kg1 {[%clk 0:00:03.4]} 50... Qxf2+ {[%clk 0:00:02]} 51. Kh1 {[%clk
0:00:04.2]} 51... Qh2# {[%clk 0:00:02.9]} 0-1

[Event "*** Titled Tuesday Blitz"]
[Site "Chess.com"]
[Date "2020.04.14"]
[Round "8"]
[White "Bad_left_hook"]
[Black "JakeCarlosBanawa"]
[Result "1-0"]
[WhiteElo "2556"]
[BlackElo "2336"]
[TimeControl "180+1"]
[EndTime "11:30:30 PDT"]
[Termination "Bad_left_hook won by resignation"]

1. Nf3 {[%clk 0:03:00.9]} 1... Nf6 {[%clk 0:02:59.4]} 2. g3 {[%clk 0:03:01.8]}
2... b6 {[%clk 0:02:58.6]} 3. Bg2 {[%clk 0:03:01.8]} 3... Bb7 {[%clk 0:02:59.3]}
4. O-O {[%clk 0:03:02.4]} 4... e6 {[%clk 0:02:59.7]} 5. d4 {[%clk 0:03:02.4]}
5... Be7 {[%clk 0:02:50.6]} 6. c4 {[%clk 0:03:01.8]} 6... O-O {[%clk 0:02:48.8]}
7. Nc3 {[%clk 0:02:59.7]} 7... d5 {[%clk 0:02:48.9]} 8. Ne5 {[%clk 0:02:59]}
8... Nbd7 {[%clk 0:02:45.2]} 9. b3 {[%clk 0:02:32.1]} 9... c6 {[%clk 0:02:40.4]}
10. Nxd7 {[%clk 0:02:29.3]} 10... Qxd7 {[%clk 0:02:37]} 11. Bb2 {[%clk
0:02:28.3]} 11... Rfd8 {[%clk 0:02:35.9]} 12. Qc2 {[%clk 0:02:24.9]} 12... Rac8
{[%clk 0:02:30.2]} 13. Rad1 {[%clk 0:02:20]} 13... Ba6 {[%clk 0:02:26.5]} 14. e4
{[%clk 0:01:59.7]} 14... dxc4 {[%clk 0:02:23.6]} 15. Qe2 {[%clk 0:01:59.6]}
15... Qc7 {[%clk 0:02:14.5]} 16. bxc4 {[%clk 0:01:52.6]} 16... c5 {[%clk
0:02:02.6]} 17. d5 {[%clk 0:01:50.7]} 17... exd5 {[%clk 0:02:02.3]} 18. Nxd5
{[%clk 0:01:44.3]} 18... Nxd5 {[%clk 0:01:59.4]} 19. exd5 {[%clk 0:01:45.2]}
19... Re8 {[%clk 0:01:50]} 20. Qg4 {[%clk 0:01:38.7]} 20... Bf8 {[%clk 0:01:43]}
21. d6 {[%clk 0:01:38.6]} 21... h5 {[%clk 0:01:27.7]} 22. Qxh5 {[%clk
0:00:55.9]} 22... Qd7 {[%clk 0:01:26.9]} 23. Bh3 {[%clk 0:00:46.9]} 23... Re6
{[%clk 0:01:22.8]} 24. Bxe6 {[%clk 0:00:45.3]} 24... Qxe6 {[%clk 0:01:22.6]} 25.
Qd5 {[%clk 0:00:41.6]} 25... Bxc4 {[%clk 0:01:20]} 26. Qxe6 {[%clk 0:00:40]}
26... Bxe6 {[%clk 0:01:20.9]} 27. h4 {[%clk 0:00:30.4]} 27... f6 {[%clk
0:01:16.4]} 28. Rfe1 {[%clk 0:00:26.3]} 28... Kf7 {[%clk 0:01:15.8]} 29. Bc1
{[%clk 0:00:24.5]} 29... Bxa2 {[%clk 0:01:06]} 30. Bf4 {[%clk 0:00:20.9]} 30...
Be6 {[%clk 0:01:02.3]} 31. Ra1 {[%clk 0:00:20.7]} 31... a5 {[%clk 0:01:00.6]}
32. Reb1 {[%clk 0:00:20.7]} 32... Rc6 {[%clk 0:00:59.7]} 33. Rd1 {[%clk
0:00:19]} 33... Ke8 {[%clk 0:00:57.8]} 34. Rab1 {[%clk 0:00:17]} 34... Kd7
{[%clk 0:00:57.4]} 35. Kf1 {[%clk 0:00:16.5]} 35... c4 {[%clk 0:00:57]} 36. Ke1
{[%clk 0:00:16.6]} 36... c3 {[%clk 0:00:57.1]} 37. Rd4 {[%clk 0:00:16.1]} 37...
c2 {[%clk 0:00:52.5]} 38. Rc1 {[%clk 0:00:16.3]} 38... b5 {[%clk 0:00:49]} 39.
Kd2 {[%clk 0:00:16.2]} 39... Bb3 {[%clk 0:00:48.3]} 40. Rd3 {[%clk 0:00:15.9]}
40... a4 {[%clk 0:00:48]} 41. Rc3 {[%clk 0:00:16.3]} 41... Bxd6 {[%clk
0:00:30.1]} 42. Rxc6 {[%clk 0:00:15.1]} 42... Kxc6 {[%clk 0:00:30.3]} 43. Bxd6
{[%clk 0:00:15.4]} 43... Kxd6 {[%clk 0:00:30.1]} 44. Re1 {[%clk 0:00:15.6]}
44... a3 {[%clk 0:00:27.3]} 45. Kc3 {[%clk 0:00:15.7]} 45... Ba4 {[%clk
0:00:24.4]} 46. Kb4 {[%clk 0:00:15.7]} 46... Kd5 {[%clk 0:00:21.1]} 47. Kxa3
{[%clk 0:00:14.7]} 47... Kc4 {[%clk 0:00:21.2]} 48. Kb2 {[%clk 0:00:15.1]} 48...
Kd3 {[%clk 0:00:21.4]} 49. Re7 {[%clk 0:00:14.1]} 49... Kd2 {[%clk 0:00:16.7]}
50. Rd7+ {[%clk 0:00:14.3]} 50... Ke2 {[%clk 0:00:16.9]} 51. Rxg7 {[%clk
0:00:15.2]} 51... Kxf2 {[%clk 0:00:15.9]} 52. h5 {[%clk 0:00:14.9]} 52... Ke3
{[%clk 0:00:11.8]} 53. h6 {[%clk 0:00:13]} 53... Kd2 {[%clk 0:00:11.8]} 54. Rd7+
{[%clk 0:00:12.6]} 54... Ke2 {[%clk 0:00:11.3]} 55. h7 {[%clk 0:00:12.2]} 55...
b4 {[%clk 0:00:11.7]} 56. Rc7 {[%clk 0:00:12.3]} 56... Kd1 {[%clk 0:00:09]} 57.
h8=Q {[%clk 0:00:11.9]} 1-0

[Event "*** Titled Tuesday Blitz"]
[Site "Chess.com"]
[Date "2020.04.14"]
[Round "8"]
[White "Filip_Covic"]
[Black "Vamostodorecto"]
[Result "1-0"]
[WhiteElo "2326"]
[BlackElo "2475"]
[TimeControl "180+1"]
[EndTime "11:30:32 PDT"]
[Termination "Filip_Covic won by checkmate"]

1. d4 {[%clk 0:03:00.9]} 1... d5 {[%clk 0:02:59.3]} 2. c4 {[%clk 0:03:00.7]}
2... c6 {[%clk 0:02:59.9]} 3. Nc3 {[%clk 0:02:58.4]} 3... Nf6 {[%clk 0:02:57.4]}
4. Nf3 {[%clk 0:02:58.2]} 4... g6 {[%clk 0:02:50.9]} 5. Bg5 {[%clk 0:02:54.7]}
5... Bg7 {[%clk 0:02:50.3]} 6. e3 {[%clk 0:02:43.6]} 6... O-O {[%clk 0:02:49.3]}
7. Rc1 {[%clk 0:02:39.9]} 7... h6 {[%clk 0:02:38]} 8. Bh4 {[%clk 0:02:38.5]}
8... Re8 {[%clk 0:02:29.5]} 9. Bd3 {[%clk 0:02:33.3]} 9... dxc4 {[%clk
0:02:28.6]} 10. Bxc4 {[%clk 0:02:33.3]} 10... g5 {[%clk 0:02:12.4]} 11. Bg3
{[%clk 0:02:31.2]} 11... Bg4 {[%clk 0:02:12.2]} 12. Bxf7+ {[%clk 0:02:29.1]}
12... Kxf7 {[%clk 0:02:08.7]} 13. Ne5+ {[%clk 0:02:29]} 13... Kg8 {[%clk
0:02:07.6]} 14. Nxg4 {[%clk 0:02:28.6]} 14... Nxg4 {[%clk 0:02:08.5]} 15. Qxg4
{[%clk 0:02:28.5]} 15... Nd7 {[%clk 0:02:07.4]} 16. Qe6+ {[%clk 0:02:24.9]}
16... Kh8 {[%clk 0:02:05]} 17. h4 {[%clk 0:02:24.6]} 17... Nf8 {[%clk
0:02:03.4]} 18. Qg4 {[%clk 0:02:21.5]} 18... gxh4 {[%clk 0:01:59.4]} 19. Bxh4
{[%clk 0:02:16.7]} 19... Qd6 {[%clk 0:01:55.7]} 20. Bg5 {[%clk 0:02:01.2]} 20...
e5 {[%clk 0:01:53.7]} 21. dxe5 {[%clk 0:01:53.7]} 21... Rxe5 {[%clk 0:01:54.6]}
22. Bf4 {[%clk 0:01:52.5]} 22... Qe6 {[%clk 0:01:55.2]} 23. Qxe6 {[%clk
0:01:25]} 23... Rxe6 {[%clk 0:01:56.1]} 24. Rd1 {[%clk 0:01:22.2]} 24... Kh7
{[%clk 0:01:51]} 25. g4 {[%clk 0:01:16.8]} 25... Ng6 {[%clk 0:01:47.6]} 26. Bg3
{[%clk 0:01:16.6]} 26... Ne5 {[%clk 0:01:34.6]} 27. Bxe5 {[%clk 0:01:13.3]}
27... Rxe5 {[%clk 0:01:35.5]} 28. Rd7 {[%clk 0:01:11.1]} 28... b6 {[%clk
0:01:32.3]} 29. Kd2 {[%clk 0:00:58.9]} 29... Rae8 {[%clk 0:01:16.8]} 30. Rxa7
{[%clk 0:00:57]} 30... Rd8+ {[%clk 0:01:17.3]} 31. Kc2 {[%clk 0:00:57.3]} 31...
b5 {[%clk 0:01:16.5]} 32. a3 {[%clk 0:00:49.5]} 32... Rc5 {[%clk 0:01:13.1]} 33.
Rd1 {[%clk 0:00:43.9]} 33... Rf8 {[%clk 0:01:08.5]} 34. f4 {[%clk 0:00:40.1]}
34... Kg6 {[%clk 0:01:00.7]} 35. f5+ {[%clk 0:00:29.7]} 35... Kf6 {[%clk
0:00:55.4]} 36. Rd6+ {[%clk 0:00:29]} 36... Kg5 {[%clk 0:00:49.1]} 37. Rxg7+
{[%clk 0:00:27.2]} 37... Kh4 {[%clk 0:00:49.4]} 38. Rxh6+ {[%clk 0:00:27.2]}
38... Kg3 {[%clk 0:00:49.8]} 39. Rd6 {[%clk 0:00:19.1]} 39... Re8 {[%clk
0:00:49.2]} 40. Kd3 {[%clk 0:00:17.1]} 40... Rc4 {[%clk 0:00:45.6]} 41. f6
{[%clk 0:00:14.3]} 41... Kf3 {[%clk 0:00:42.7]} 42. f7 {[%clk 0:00:09.9]} 42...
Rxe3+ {[%clk 0:00:41.8]} 43. Kc2 {[%clk 0:00:10.2]} 43... Re2+ {[%clk
0:00:36.7]} 44. Kb3 {[%clk 0:00:10.4]} 44... Rf4 {[%clk 0:00:33.1]} 45. Nxe2
{[%clk 0:00:10]} 45... Kxe2 {[%clk 0:00:32.8]} 46. g5 {[%clk 0:00:10.5]} 46...
c5 {[%clk 0:00:31.5]} 47. Rf6 {[%clk 0:00:09.4]} 47... c4+ {[%clk 0:00:32.4]}
48. Kb4 {[%clk 0:00:09.2]} 48... c3+ {[%clk 0:00:29.7]} 49. Kxc3 {[%clk
0:00:06.5]} 49... b4+ {[%clk 0:00:27.8]} 50. axb4 {[%clk 0:00:06.2]} 50... Re4
{[%clk 0:00:23.8]} 51. f8=Q {[%clk 0:00:05.4]} 51... Re3+ {[%clk 0:00:24.5]} 52.
Kc4 {[%clk 0:00:05.5]} 52... Kd2 {[%clk 0:00:22.2]} 53. Rd6+ {[%clk 0:00:04.9]}
53... Kc2 {[%clk 0:00:21.9]} 54. Qf2+ {[%clk 0:00:05]} 54... Re2 {[%clk
0:00:18.5]} 55. Qxe2+ {[%clk 0:00:04.9]} 55... Kb1 {[%clk 0:00:19.2]} 56. Rd1+
{[%clk 0:00:04.9]} 56... Ka2 {[%clk 0:00:20.1]} 57. b3+ {[%clk 0:00:05.8]} 57...
Ka3 {[%clk 0:00:19.7]} 58. Ra7# {[%clk 0:00:04.8]} 1-0